bitfinex/quotes_SOLUSD_20240811
["timestamp","ask_amount","ask_price","bid_price","bid_amount"]
[1723400881082,24.555,147.92,147.82,32.31]
[1723400881574,19.8227,147.92,147.82,32.31]
[1723400881775,7.03395915,147.96,147.83,0.25098]
[1723400881969,4.7314,147.95,147.83,0.25098]
[1723400882172,7.87295085,147.96,147.83,0.25098]
[1723400882173,7.87295085,147.96,147.85,32.31]
[1723400882406,7.87295085,147.96,147.86,0.12549]
[1723400882572,0.8389917,147.96,147.86,0.12549]
[1723400882772,0.8389917,147.96,147.86,0.25098]
[1723400883003,0.8389917,147.96,147.85,32.31]
[1723400883004,4.7313,147.95,147.85,32.31]
[1723400883201,4.7325,147.92,147.82,32.31]
[1723400883591,4.7319,147.93,147.82,32.31]
[1723400883793,4.7324,147.92,147.82,32.31]
[1723400884102,1.69064723,147.94,147.82,32.31]
[1723400884283,0.8389917,147.96,147.85,32.31]
[1723400884487,0.8389917,147.96,147.86,0.12549]
[1723400884792,0.8389917,147.96,147.85,32.31]
[1723400885003,4.7322,147.93,147.82,32.31]
[1723400885197,4.7326,147.91,147.82,32.31]
[1723400885391,33.1489917,147.96,147.82,32.31]
[1723400885908,1.81608151,147.95,147.82,31.81]
[1723400886407,0.8389917,147.96,147.85,32.31]
[1723400887188,0.8389917,147.96,147.82,32.31]
[1723400887386,0.8389917,147.96,147.83,20.0]
[1723400887601,4.7318,147.94,147.83,20.0]
[1723400888115,0.8389917,147.96,147.83,20.0]
[1723400888116,0.12549,147.95,147.83,20.0]
[1723400888409,4.7329,147.9,147.77,32.31]
[1723400888609,4.7323,147.92,147.77,32.31]
[1723400888906,78.1489917,147.96,147.8,32.31]
[1723400889088,4.7313,147.95,147.83,32.31]
[1723400890205,5.5701917,147.96,147.84,0.12549]
[1723400890408,5.5701917,147.96,147.86,32.31]
[1723400890409,0.8389917,147.96,147.86,32.31]
[1723400890706,5.5699917,147.96,147.86,32.31]
[1723400891093,0.8389917,147.96,147.83,32.31]
[1723400891295,1.69024751,147.95,147.8,32.31]
[1723400892008,46.69024751,147.95,147.8,32.31]
[1723400892398,4.7324,147.92,147.8,32.31]
[1723400892604,1.69068541,147.91,147.8,32.31]
[1723400892814,1.69068541,147.91,147.77,39.3456373]
[1723400893490,1.6908425,147.9,147.77,39.3456373]
[1723400893690,1.6908425,147.89,147.77,39.3456373]
[1723400894214,4.7339,147.87,147.77,32.31]
[1723400894435,1.69112025,147.86,147.77,32.31]
[1723400894631,1.69112011,147.85,147.77,32.31]
[1723400895094,1.6911202,147.86,147.77,32.31]
[1723400895411,7.03605799,147.95,147.77,32.31]
[1723400895619,4.7319,147.93,147.82,32.31]
[1723400895992,4.7319,147.93,147.84,26.92]
[1723400896409,4.7323,147.92,147.84,26.92]
[1723400896718,4.7327,147.91,147.82,26.92]
[1723400897210,0.8389917,147.91,147.82,26.92]
[1723400898993,1.69061318,147.9,147.82,26.92]
[1723400899491,0.8389917,147.91,147.82,26.92]
[1723400899822,1.69061297,147.9,147.82,26.92]
[1723400900019,4.7336,147.88,147.8,26.92]
[1723400900209,27.7589917,147.91,147.73,8.21051645]
[1723400900210,4.7346,147.85,147.76,26.92]
[1723400900408,6.42627262,147.84,147.76,26.92]
[1723400900723,26.92,147.83,147.72,26.92]
[1723400900932,4.7358,147.81,147.72,26.92]
[1723400901094,4.7361,147.8,147.7,26.92]
[1723400901293,79.3926,147.83,147.72,26.92]
[1723400901507,1.69179072,147.82,147.72,26.92]
[1723400901788,6.42749072,147.82,147.72,26.92]
[1723400901993,0.12549,147.81,147.67,7.03920184]
[1723400902193,2.0687277,147.81,147.66,32.36]
[1723400902426,52.4726,147.83,147.69,32.36]
[1723400902631,1.81740768,147.82,147.69,32.36]
[1723400902800,1.81740768,147.82,147.66,32.36]
[1723400902801,4.7372,147.77,147.66,32.36]
[1723400903017,1.69238419,147.76,147.66,32.36]
[1723400903406,6.42988419,147.76,147.66,32.36]
[1723400903606,4.7375,147.76,147.64,10.60302203]
[1723400903813,0.12549,147.8,147.64,17.64436428]
[1723400903991,45.12549,147.8,147.66,32.36]
[1723400904192,1.69233361,147.79,147.66,32.36]
[1723400904396,1.69233361,147.79,147.64,7.04134225]
[1723400904397,1.81782361,147.79,147.64,7.04134225]
[1723400904623,4.7374,147.76,147.63,32.36]
[1723400904798,1.69249695,147.76,147.63,32.36]
[1723400905003,45.0,147.77,147.63,32.36]
[1723400905233,32.36,147.81,147.66,32.36]
[1723400905536,4.7365,147.79,147.66,32.36]
[1723400905725,6.42876434,147.79,147.66,32.36]
[1723400905926,7.4726,147.83,147.67,0.12549]
[1723400906229,6.42744559,147.82,147.69,32.36]
[1723400906414,6.42744559,147.82,147.7,20.0]
[1723400906601,7.4726,147.83,147.7,20.0]
[1723400906806,6.42732603,147.82,147.7,20.0]
[1723400907197,4.7358,147.81,147.7,20.0]
[1723400907603,7.4726,147.83,147.7,20.0]
[1723400907925,1.81748076,147.82,147.7,20.0]
[1723400908107,4.7359,147.81,147.7,20.0]
[1723400908309,13.89981434,147.83,147.7,20.0]
[1723400908604,7.4726,147.83,147.75,32.36]
[1723400908826,18.8242,147.86,147.75,32.36]
[1723400909911,18.8242,147.86,147.76,0.12549]
[1723400910402,12.2059,147.89,147.78,32.36]
[1723400910403,7.4726,147.89,147.78,32.36]
[1723400910605,0.8389917,147.91,147.81,32.36]
[1723400911634,0.8389917,147.91,147.79,0.12549]
[1723400911635,4.7333,147.89,147.77,32.36]
[1723400911840,1.69090237,147.88,147.78,20.37647]
[1723400913030,1.69090111,147.87,147.78,20.0]
[1723400913405,33.1989917,147.91,147.78,20.0]
[1723400913731,0.8389917,147.91,147.78,20.0]
[1723400914731,0.8389917,147.91,147.79,0.25098]
[1723400914916,0.8389917,147.91,147.8,0.25098]
[1723400915118,1.69062544,147.9,147.81,0.12549]
[1723400915321,1.69073597,147.89,147.79,0.25098]
[1723400916343,5.5715917,147.91,147.78,20.0]
[1723400916531,0.8389917,147.91,147.78,20.0]
[1723400916737,0.8389917,147.91,147.79,0.12549]
[1723400916911,0.52970861,147.91,147.79,0.12549]
[1723400917553,0.52970861,147.91,147.83,32.36]
[1723400917715,0.52970861,147.91,147.86,32.36]
[1723400917914,0.52970861,147.91,147.84,20.0]
[1723400918143,0.52970861,147.91,147.83,32.36]
[1723400919231,0.52970861,147.91,147.8,32.36]
[1723400919431,2.22042878,147.91,147.81,20.0]
[1723400920141,0.52970861,147.91,147.81,20.0]
[1723400920743,0.52970861,147.91,147.82,0.12549]
[1723400921944,0.52970861,147.91,147.84,26.92]
[1723400922626,0.52970861,147.91,147.86,26.92]
[1723400923036,0.52970861,147.91,147.9,26.92]
[1723400923334,19.2809,148.01,147.9,26.92]
[1723400923536,19.2809,148.01,147.94,26.92]
[1723400924261,19.2809,148.01,147.96,26.92]
[1723400925753,19.2809,148.01,147.94,26.92]
[1723400925754,1.68930856,148.0,147.94,26.92]
[1723400925931,19.2809,148.01,147.92,26.92]
[1723400926751,45.0,148.0,147.9,26.92]
[1723400926927,4.7307,147.97,147.88,26.92]
[1723400927253,6.42108563,147.96,147.86,26.92]
[1723400927449,26.92,147.97,147.86,26.92]
[1723400927649,4.7306,147.98,147.88,26.92]
[1723400927948,6.4206366,147.98,147.88,26.92]
[1723400928159,4.7301,147.99,147.88,26.92]
[1723400928459,4.7313,147.95,147.86,26.92]
[1723400928625,1.69028128,147.94,147.86,26.92]
[1723400929057,26.92,147.97,147.74,11.64742701]
[1723400929358,26.92,147.94,147.83,26.92]
[1723400929551,4.7316,147.94,147.83,26.92]
[1723400929741,4.7307,147.97,147.87,26.92]
[1723400930051,28.61011443,147.96,147.84,26.92]
[1723400930259,26.92,147.92,147.82,26.92]
[1723400930443,4.7336,147.88,147.78,33.94879267]
[1723400931029,39.5059,147.9,147.8,26.92]
[1723400931231,7.8528,147.9,147.82,26.92]
[1723400931658,7.8528,147.9,147.84,26.92]
[1723400932165,7.8528,147.9,147.86,26.92]
[1723400933039,4.7316,147.94,147.86,26.92]
[1723400933256,7.8528,147.96,147.86,26.92]
[1723400933435,7.8528,147.96,147.88,26.92]
[1723400933969,12.5838,147.96,147.88,26.92]
[1723400934842,7.8528,147.96,147.88,26.92]
[1723400935048,14.27380982,147.96,147.88,26.92]
[1723400935371,4.7313,147.95,147.88,26.92]
[1723400935735,12.5838,147.96,147.88,26.92]
[1723400936353,7.8528,147.96,147.88,26.92]
[1723400936744,12.584,147.96,147.88,26.92]
[1723400936963,1.69000177,147.95,147.88,26.92]
[1723400937645,7.8528,147.96,147.88,26.92]
[1723400937844,12.5838,147.96,147.88,26.92]
[1723400938273,4.7313,147.95,147.88,26.92]
[1723400938761,4.7324,147.92,147.8,7.03468185]
[1723400938967,4.7324,147.92,147.82,26.92]
[1723400938968,4.733,147.9,147.82,26.92]
[1723400939140,4.7326,147.91,147.82,26.92]
[1723400939341,4.733,147.9,147.82,26.92]
[1723400939544,4.7323,147.92,147.82,26.92]
[1723400940063,4.7326,147.91,147.82,26.92]
[1723400940369,4.7329,147.9,147.82,26.92]
[1723400940665,4.7325,147.92,147.82,26.92]
[1723400940868,4.732,147.93,147.83,1.35246685]
[1723400941045,4.732,147.93,147.84,26.92]
[1723400942277,6.42252513,147.93,147.83,0.12549]
[1723400942461,4.7351,147.83,147.79,7.03486085]
[1723400942660,26.92,147.86,147.73,26.92]
[1723400942661,4.7349,147.84,147.73,26.92]
[1723400942982,4.7349,147.84,147.6,40.7592246]
[1723400942983,26.92,147.8,147.71,7.04019885]
[1723400943146,26.92,147.8,147.69,28.0940622]
[1723400943763,4.7358,147.81,147.69,28.0940622]
[1723400943957,4.7358,147.81,147.71,26.92]
[1723400944169,4.7362,147.8,147.71,26.92]
[1723400944355,26.92,147.82,147.72,1.35356936]
[1723400944682,31.6557,147.82,147.71,26.92]
[1723400944977,31.6557,147.82,147.63,36.929998]
[1723400944978,26.92,147.8,147.67,26.92]
[1723400945171,4.7374,147.76,147.67,26.92]
[1723400945371,26.92,147.78,147.67,26.92]
[1723400945372,4.7371,147.77,147.67,26.92]
[1723400945574,26.92,147.8,147.69,26.92]
[1723400945750,26.92,147.84,147.73,26.92]
[1723400945954,26.92,147.86,147.73,26.92]
[1723400946260,4.7363,147.8,147.71,26.92]
[1723400946793,4.7358,147.81,147.72,0.12549]
[1723400946957,26.92,147.82,147.71,26.92]
[1723400947162,26.92,147.8,147.69,26.92]
[1723400947396,26.92,147.8,147.7,0.25098]
[1723400947586,26.92,147.82,147.7,0.25098]
[1723400947967,4.7364,147.79,147.7,0.25098]
[1723400948166,4.737,147.78,147.7,0.25098]
[1723400948364,26.92,147.76,147.65,33.95414963]
[1723400948571,26.92,147.78,147.65,26.92]
[1723400948777,4.7371,147.77,147.67,26.92]
[1723400948986,31.6568,147.78,147.67,26.92]
[1723400949995,4.7364,147.79,147.69,26.92]
[1723400950183,4.7368,147.78,147.69,26.92]
[1723400950698,31.657,147.78,147.67,26.92]
[1723400951081,31.657,147.78,147.68,0.12549]
[1723400951678,4.7371,147.77,147.67,26.92]
[1723400952176,31.6568,147.78,147.67,26.92]
[1723400952672,4.7372,147.77,147.67,26.92]
[1723400952874,4.7374,147.76,147.67,26.92]
[1723400953102,4.7371,147.77,147.67,26.92]
[1723400953392,26.92,147.78,147.67,26.92]
[1723400953601,4.7389,147.72,147.63,33.97386038]
[1723400953767,26.92,147.74,147.63,33.97386038]
[1723400953973,26.92,147.77,147.65,26.92]
[1723400954275,26.92,147.79,147.69,26.92]
[1723400954697,26.92,147.79,147.7,1.35377236]
[1723400954871,26.92,147.79,147.69,26.92]
[1723400955602,4.7368,147.78,147.69,26.92]
[1723400956090,31.6565,147.79,147.69,26.92]
[1723400956289,20.5149,147.8,147.71,26.92]
[1723400956979,20.5149,147.8,147.72,0.12549]
[1723400957310,7.8528,147.83,147.75,26.92]
[1723400957606,12.588,147.83,147.75,26.92]
[1723400959599,20.5703,147.86,147.77,26.92]
[1723400960303,1.69113137,147.85,147.77,26.92]
[1723400960499,4.735,147.84,147.77,26.92]
[1723400960876,6.42573137,147.85,147.77,26.92]
[1723400961099,4.7346,147.85,147.77,26.92]
[1723400961400,4.7349,147.84,147.77,26.92]
[1723400961602,4.7349,147.84,147.75,26.92]
[1723400962822,26.92,147.85,147.75,26.92]
[1723400963114,4.7358,147.81,147.71,26.92]
[1723400963484,4.7361,147.8,147.71,26.92]
[1723400963679,31.6558,147.81,147.71,26.92]
[1723400964604,26.92,147.81,147.71,26.92]
[1723400964802,26.92,147.83,147.72,1.35341372]
[1723400965018,26.92,147.85,147.75,26.92]
[1723400965309,20.5703,147.86,147.75,26.92]
[1723400965520,26.92,147.85,147.75,26.92]
[1723400966207,28.61153839,147.85,147.73,26.92]
[1723400966504,4.735,147.84,147.73,26.92]
[1723400966689,1.69145806,147.83,147.74,0.12549]
[1723400967014,1.6915501,147.82,147.73,26.92]
[1723400967211,4.7348,147.84,147.74,1.47872982]
[1723400967397,31.6545,147.85,147.74,1.47872982]
[1723400967720,4.7345,147.85,147.75,26.92]
[1723400968715,4.7348,147.84,147.75,26.92]
[1723400969305,4.7345,147.85,147.75,26.92]
[1723400969714,4.7348,147.84,147.75,26.92]
[1723400971586,1.6913574,147.83,147.75,26.92]
[1723400971788,1.69167957,147.82,147.73,26.92]
[1723400971989,21.57,147.79,147.68,21.57]
[1723400972188,4.7371,147.77,147.68,21.57]
[1723400972388,1.69215295,147.76,147.68,21.57]
[1723400972684,1.69215474,147.77,147.68,21.57]
[1723400973293,1.69215474,147.77,147.69,20.12549]
[1723400973707,27.62672044,147.86,147.74,21.57]
[1723400973909,26.96,147.84,147.73,26.96]
[1723400974089,56.27843799,147.86,147.75,26.96]
[1723400974284,20.5703,147.86,147.76,1.35316302]
[1723400974586,20.5703,147.86,147.79,26.96]
[1723400974998,25.3045,147.86,147.77,26.96]
[1723400975211,20.5703,147.86,147.77,26.96]
[1723400980527,20.5703,147.86,147.79,26.96]
[1723400980698,1.69119489,147.85,147.79,26.96]
[1723400980898,20.5703,147.86,147.79,26.96]
[1723400982628,20.5703,147.86,147.69,7.23506341]
[1723400982629,1.6910656,147.85,147.69,7.23506341]
[1723400982934,1.6910656,147.85,147.65,35.19262616]
[1723400982935,4.7374,147.76,147.65,35.19262616]
[1723400983225,26.96,147.74,147.63,26.96]
[1723400983610,4.7381,147.74,147.63,26.96]
[1723400983904,26.96,147.76,147.65,26.96]
[1723400984131,31.6974,147.76,147.65,26.96]
[1723400985445,1.69238865,147.75,147.63,26.96]
[1723400985745,46.4117,147.74,147.63,26.96]
[1723400985917,24.1898,147.74,147.65,26.96]
[1723400986647,4.7384,147.73,147.63,26.96]
[1723400986819,46.4117,147.74,147.63,26.96]
[1723400987028,26.96,147.7,147.6,0.2692246]
[1723400987552,1.69309742,147.69,147.6,0.2692246]
[1723400988643,26.96,147.72,147.61,26.96]
[1723400988830,28.65305554,147.72,147.61,26.96]
[1723400989326,4.7393,147.7,147.61,26.96]
[1723400989648,1.69310764,147.69,147.61,26.96]
[1723400990042,1.69310764,147.69,147.6,0.2692246]
[1723400990245,7.9085,147.68,147.6,0.2692246]
[1723400990433,31.7007,147.66,147.6,0.2692246]
[1723400990631,39.6085,147.68,147.6,0.2692246]
[1723400990825,4.7403,147.67,147.6,0.2692246]
[1723400991025,1.69350869,147.66,147.6,0.2692246]
[1723400991550,4.7409,147.65,147.6,0.2692246]
[1723400991958,1.6935293,147.64,147.6,0.2692246]
[1723400993549,1.69364149,147.65,147.6,0.2692246]
[1723400993752,1.69366009,147.64,147.6,0.2692246]
[1723400994258,31.7007,147.66,147.6,0.2692246]
[1723400994433,1.69361699,147.65,147.6,0.2692246]
[1723400994635,31.7007,147.66,147.6,0.2692246]
[1723400994636,1.69361132,147.64,147.6,0.2692246]
[1723400997848,31.7007,147.66,147.6,0.2692246]
[1723400999038,4.7403,147.67,147.6,0.2692246]
[1723400999536,6.43376953,147.67,147.6,0.2692246]
[1723401000660,34.8685,147.68,147.6,0.2692246]
[1723401000661,7.9085,147.68,147.6,27.2292246]
[1723401000840,1.69326209,147.67,147.6,27.2292246]
[1723401001235,6.43356209,147.67,147.6,27.2292246]
[1723401001650,7.9085,147.68,147.6,27.2292246]
[1723401001961,7.9085,147.68,147.62,26.96]
[1723401002147,7.9085,147.68,147.6,0.2692246]
[1723401002343,7.9085,147.68,147.6,27.2292246]
[1723401003538,12.6485,147.68,147.6,27.2292246]
[1723401003738,4.7397,147.69,147.6,27.2292246]
[1723401003934,4.7396,147.7,147.6,27.2292246]
[1723401004162,4.7396,147.7,147.61,0.12549]
[1723401004457,4.7396,147.69,147.61,0.12549]
[1723401004956,4.7394,147.7,147.61,0.12549]
[1723401005544,8.1702,147.73,147.66,26.96]
[1723401005740,8.1702,147.73,147.67,1.35407246]
[1723401005938,8.1702,147.73,147.66,21.59]
[1723401006159,4.7394,147.7,147.64,21.59]
[1723401006363,4.7391,147.71,147.64,21.59]
[1723401006540,4.7387,147.72,147.64,21.59]
[1723401006866,1.69280785,147.71,147.64,21.59]
[1723401007159,4.7397,147.69,147.6,21.8592246]
[1723401007379,4.7397,147.69,147.62,21.59]
[1723401007671,26.3293,147.7,147.62,21.59]
[1723401007856,4.7386,147.72,147.63,0.12549]
[1723401008053,19.4517,147.74,147.68,26.99]
[1723401008763,8.1702,147.78,147.7,26.99]
[1723401008960,29.87500025,147.79,147.72,26.99]
[1723401008961,19.2689,147.79,147.72,26.99]
[1723401009261,4.7355,147.82,147.74,26.99]
[1723401009461,12.9054,147.83,147.75,1.35319079]
[1723401009661,8.1702,147.83,147.74,26.99]
[1723401009971,8.1702,147.83,147.72,26.99]
[1723401010138,8.1702,147.83,147.67,5.07479]
[1723401010139,26.99,147.8,147.68,27.11549]
[1723401010338,4.7364,147.79,147.7,26.99]
[1723401010660,4.7374,147.76,147.68,26.99]
[1723401010963,4.7374,147.76,147.64,26.99]
[1723401010964,1.69222557,147.81,147.73,26.99]
[1723401011160,1.69222557,147.81,147.71,26.99]
[1723401011161,8.1702,147.83,147.75,26.99]
[1723401011363,8.1702,147.83,147.77,26.99]
[1723401011541,19.2689,147.85,147.79,26.99]
[1723401011738,4.7349,147.84,147.77,26.99]
[1723401012249,20.96017108,147.85,147.77,26.99]
[1723401012250,24.0034,147.85,147.77,26.99]
[1723401012565,19.2689,147.85,147.77,26.99]
[1723401012863,24.0034,147.85,147.77,26.99]
[1723401013475,19.2689,147.85,147.77,26.99]
[1723401013767,19.2689,147.85,147.79,26.99]
[1723401013971,12.2219,147.88,147.81,26.99]
[1723401013972,7.4883,147.88,147.81,26.99]
[1723401014145,9.17918698,147.88,147.81,26.99]
[1723401014347,12.2218,147.88,147.81,26.99]
[1723401014548,1.6908202,147.87,147.79,26.99]
[1723401014773,1.6908202,147.87,147.77,26.99]
[1723401015067,1.6908202,147.87,147.76,0.25098]
[1723401015068,4.7349,147.84,147.75,26.99]
[1723401015546,6.42621621,147.85,147.75,26.99]
[1723401016476,12.2221,147.88,147.79,26.99]
[1723401018346,4.7339,147.87,147.79,26.99]
[1723401018679,12.2219,147.88,147.8,0.12549]
[1723401018971,7.4883,147.88,147.81,26.99]
[1723401019468,12.2219,147.88,147.8,0.12549]
[1723401019671,7.4883,147.88,147.81,26.99]
[1723401020373,7.4883,147.88,147.83,26.99]
[1723401020551,19.7072,147.91,147.83,26.99]
[1723401020870,19.7072,147.91,147.84,0.12549]
[1723401021462,24.44,147.91,147.84,0.12549]
[1723401021877,19.7072,147.91,147.81,26.99]
[1723401022081,19.7072,147.91,147.82,0.12549]
[1723401022374,26.99,147.9,147.79,26.99]
[1723401022771,1.69083915,147.89,147.79,26.99]
[1723401023072,19.7072,147.91,147.81,26.99]
[1723401023266,24.4398,147.91,147.81,26.99]
[1723401023682,24.4398,147.91,147.82,0.12549]
[1723401023866,4.733,147.9,147.82,0.37647]
[1723401024380,4.7347,147.85,147.77,26.99]
[1723401024559,4.7347,147.85,147.75,26.99]
[1723401024763,1.6912549,147.84,147.75,26.99]
[1723401025085,4.7352,147.83,147.73,26.99]
[1723401025284,26.99,147.81,147.71,26.99]
[1723401025586,26.99,147.81,147.69,26.99]
[1723401025587,46.6972,147.81,147.69,26.99]
[1723401025784,51.433,147.81,147.7,1.35353914]
[1723401025983,46.6972,147.81,147.71,1.35352101]
[1723401026158,46.6972,147.81,147.69,26.99]
[1723401026159,51.4331,147.81,147.69,26.99]
[1723401026677,26.99,147.79,147.69,26.99]
[1723401026876,26.99,147.77,147.67,26.99]
[1723401027086,1.69220104,147.76,147.67,26.99]
[1723401028162,1.69220104,147.76,147.68,0.25098]
[1723401028362,26.99,147.79,147.69,26.99]
[1723401028563,51.433,147.81,147.71,26.99]
[1723401029291,4.7362,147.8,147.71,26.99]
[1723401029490,46.6972,147.81,147.72,0.12549]
[1723401030293,51.433,147.81,147.72,0.12549]
[1723401031091,1.69185474,147.8,147.7,0.25098]
[1723401031300,1.69200243,147.79,147.71,0.12549]
[1723401031872,4.7363,147.8,147.71,0.12549]
[1723401032874,6.42831633,147.79,147.71,0.12549]
[1723401033074,4.7369,147.78,147.69,27.11549]
[1723401033273,1.69212565,147.77,147.7,0.12549]
[1723401033574,1.69212572,147.76,147.7,0.12549]
[1723401034101,31.7264,147.79,147.7,0.12549]
[1723401034275,19.7072,147.81,147.71,27.11549]
[1723401034598,19.7072,147.81,147.73,26.99]
[1723401034806,19.7072,147.81,147.74,0.12549]
[1723401035571,19.7072,147.81,147.73,26.99]
[1723401035874,4.7372,147.77,147.69,26.99]
[1723401036203,46.6972,147.81,147.69,26.99]
[1723401036204,1.69212787,147.76,147.69,26.99]
[1723401036379,1.69212787,147.77,147.69,26.99]
[1723401036582,1.69212834,147.76,147.69,26.99]
[1723401036997,46.6972,147.81,147.71,26.99]
[1723401037203,24.4431,147.81,147.72,0.12549]
[1723401037410,19.7072,147.81,147.74,0.12549]
[1723401037606,12.2237,147.83,147.77,26.99]
[1723401037607,7.4883,147.83,147.77,26.99]
[1723401038020,24.2463,147.87,147.79,26.99]
[1723401038188,4.7343,147.86,147.77,26.99]
[1723401038814,46.5022,147.87,147.77,26.99]
[1723401038815,51.2361,147.87,147.77,26.99]
[1723401039014,19.5122,147.87,147.78,0.25098]
[1723401039225,19.5122,147.87,147.79,27.24098]
[1723401039402,24.2461,147.87,147.79,26.99]
[1723401039603,19.5122,147.87,147.79,26.99]
[1723401040016,19.5122,147.87,147.78,0.12549]
[1723401040017,4.7345,147.86,147.78,0.12549]
[1723401040230,4.7345,147.86,147.77,26.99]
[1723401040546,19.5122,147.87,147.73,26.99]
[1723401040547,4.7357,147.82,147.73,26.99]
[1723401040694,1.69169654,147.82,147.73,26.99]
[1723401041029,6.42739654,147.82,147.73,26.99]
[1723401041819,31.7251,147.83,147.73,26.99]
[1723401042329,31.7251,147.83,147.74,0.12549]
[1723401042504,31.7251,147.83,147.74,0.37647]
[1723401042695,31.7251,147.83,147.74,0.12549]
[1723401043310,26.99,147.85,147.75,26.99]
[1723401043503,19.5122,147.87,147.78,0.12549]
[1723401043831,19.5122,147.87,147.79,26.99]
[1723401045332,24.2461,147.87,147.79,26.99]
[1723401045511,4.7346,147.85,147.77,26.99]
[1723401045825,4.7342,147.86,147.78,0.12549]
[1723401046005,46.5022,147.87,147.78,0.12549]
[1723401046328,51.2363,147.87,147.78,0.12549]
[1723401046534,4.7342,147.86,147.78,0.12549]
[1723401047334,51.2361,147.87,147.78,0.12549]
[1723401047742,19.5122,147.87,147.81,26.99]
[1723401047919,19.5122,147.87,147.82,1.35263736]
[1723401048228,19.5122,147.87,147.81,26.99]
[1723401048408,24.2461,147.87,147.79,26.99]
[1723401048602,19.5122,147.87,147.8,0.12549]
[1723401049210,24.2463,147.87,147.79,26.99]
[1723401049414,24.2463,147.87,147.75,26.99]
[1723401049415,26.99,147.85,147.75,26.99]
[1723401049719,26.99,147.83,147.73,26.99]
[1723401049907,4.7357,147.82,147.73,26.99]
[1723401051024,31.7251,147.83,147.73,26.99]
[1723401051208,1.69166945,147.82,147.73,26.99]
[1723401051409,4.7355,147.82,147.73,26.99]
[1723401051725,4.7355,147.82,147.71,26.99]
[1723401052132,6.42713002,147.82,147.71,26.99]
[1723401052307,6.42713002,147.82,147.72,20.50196]
[1723401052308,4.7358,147.81,147.72,20.50196]
[1723401052640,4.7355,147.82,147.72,20.50196]
[1723401053855,6.42717216,147.82,147.72,20.50196]
[1723401054021,4.7355,147.82,147.72,20.50196]
[1723401054215,26.99,147.79,147.69,7.05400919]
[1723401054428,31.7273,147.77,147.67,26.99]
[1723401054734,1.6921374,147.76,147.67,26.99]
[1723401054939,26.99,147.79,147.69,26.99]
[1723401055815,12.9474,147.8,147.7,0.25098]
[1723401056024,12.9474,147.8,147.71,0.12549]
[1723401056223,4.7364,147.79,147.71,0.12549]
[1723401056634,12.9474,147.8,147.71,0.12549]
[1723401056839,8.2113,147.8,147.72,0.12549]
[1723401057035,8.2113,147.8,147.73,26.99]
[1723401057230,8.2113,147.8,147.74,0.12549]
[1723401058424,8.2113,147.8,147.75,26.99]
[1723401058620,12.9462,147.84,147.76,0.25098]
[1723401059123,12.9462,147.84,147.76,0.12549]
[1723401059544,8.2113,147.84,147.76,0.12549]
[1723401059839,8.2113,147.84,147.76,0.37647]
[1723401060050,8.2113,147.84,147.77,28.46852055]
[1723401060229,8.2113,147.84,147.78,0.12549]
[1723401060429,24.2461,147.87,147.79,27.11549]
[1723401060630,24.2461,147.87,147.8,0.12549]